Cogmind - Beta 11.1 @@@ ROGUE MODE // 2022.05.09 @ 06:28:24 Player: AnthonyDPS 2004 Result: Destroyed by L-41 Fighter with Axe Performance ------------- Evolutions (5) 2500 Regions Visited (8) 1600 Robots Destroyed (25) 125 Value Destroyed (880) 880 Prototype IDs (7) 140 Alien Tech Used (0) 0 Bonus (1337) 1337 TOTAL SCORE: 6582 Bonus ------- Pacifist 1325 High Alert Combat Kills 12 Cogmind --------- Core Integrity 0/1000 Matter 250/300 Energy 30/150 System Corruption 1% Temperature Cool (0) Movement Hovering (68) Location -5/Extension Parts ------- > --- POWER (1) -------- Micro Fission Core > --- PROPULSION (4) --- Gyrokinetic Inverter Combat Gravmag System Combat Gravmag System > --- UTILITY (9) ------ Medium Storage Unit Enhanced Optical Array Melee Analysis Suite Improved Target Analyzer Improved Actuator Array Improved Actuator Array Hacking Suite System Guard > --- WEAPON (3) ------- Spear Spear > --- INVENTORY (10) --- Improved Heat Sink High-capacity Matter Pod (200) Advanced Signal Interpreter Component Analysis Suite Rocket Launcher Peak State ------------ > --- POWER ------------ Light Fission Core > --- PROPULSION ------- Antigrav System Antigrav System Gyrokinetic Inverter Gyrokinetic Inverter > --- UTILITY ---------- Advanced Heat Sink Medium Storage Unit Enhanced Optical Array Melee Analysis Suite Improved Melee Analysis Suite Improved Target Analyzer Transmission Jammer Hacking Suite System Guard > --- WEAPON ----------- Power Sword Spear Spear > --- INVENTORY -------- Micro Fission Core Heat Sink Improved Heat Sink Medium Storage Unit High-capacity Matter Pod Advanced Signal Interpreter Improved Actuator Array Component Analysis Suite Heavy Particle Gun Rocket Launcher [Rating: 80] Favorites ----------- Power Light Ion Engine Engine Light Ion Engine Power Core Micro Fission Core Propulsion Wheel Leg Aluminum Leg Wheel Wheel Hover Unit Gyrokinetic Inverter Utility Medium Storage Unit Device Transmission Jammer Storage Medium Storage Unit Processor Enhanced Optical Array Hackware Hacking Suite Protection Layered Light Armor Plating Weapon Power Sword Energy Gun Heavy Particle Gun Ballistic Gun Improved Assault Rifle Special Weapon Remote Datajack Slashing Weapon Power Sword Piercing Weapon Spear Build | -11 -10 -9 -9 -8 -7 -6 -5 -5 ------- Run | Scr Mat Mat Min Mat Fac Fac Fac Ext Slots Evolved 10 | . . 2 . 2 2 2 2 . Power . | . . . . . . . . . Propulsion 2 | . . . . 1 1 . . . Utility 7 | . . 2 . 1 1 1 2 . Weapon 1 | . . . . . . 1 . . Parts Attached 73 | 4 1 4 2 2 6 8 41 5 Power 9 | 1 . . . . 1 . 7 . Engine 4 | 1 . . . . 1 . 2 . Core 5 | . . . . . . . 5 . Reactor . | . . . . . . . . . Propulsion 26 | 2 1 . . 1 1 3 17 1 Treads . | . . . . . . . . . Leg 10 | . . . . . . 3 7 . Wheel 7 | 2 1 . . 1 1 . 2 . Hover 9 | . . . . . . . 8 1 Flight . | . . . . . . . . . Utility 25 | 1 . 3 1 . 4 4 10 2 Device 12 | . . 1 . . 3 2 4 2 Storage 3 | 1 . 1 . . . . 1 . Processor 5 | . . . . . . 2 3 . Hackware 1 | . . . . . . . 1 . Protection 4 | . . 1 1 . 1 . 1 . Artifact . | . . . . . . . . . Weapon 13 | . . 1 1 1 . 1 7 2 Energy Gun 1 | . . . . 1 . . . . Energy Cannon . | . . . . . . . . . Ballistic Gun 1 | . . 1 . . . . . . Ballistic Cannon . | . . . . . . . . . Launcher . | . . . . . . . . . Special Weapon 5 | . . . 1 . . . 4 . Impact Weapon . | . . . . . . . . . Slashing Weapon 2 | . . . . . . 1 1 . Piercing Weapon 4 | . . . . . . . 2 2 Special Melee Weapon . | . . . . . . . . . Unidentified Prototypes 3 | . . 1 . 1 1 . . . Parts Lost 33 | . . . . . 1 6 25 1 Power 3 | . . . . . . . 3 . Propulsion 14 | . . . . . 1 3 9 1 Utility 9 | . . . . . . 3 6 . Weapon 7 | . . . . . . . 7 . Highest Loss Streak 9 | . . . . . 1 4 9 1 To Critical Strikes . | . . . . . . . . . Average Slot Usage (%) 84 | . 57 63 91 90 90 91 84 80 Engine 4 | . 14 11 11 9 7 6 2 . Core 1 | . . . . . . . 2 5 Leg 6 | . . . . . . 10 10 . Wheel 8 | . 28 22 22 27 26 11 . . Hover 6 | . . . . . . . 8 19 Device 14 | . . 6 11 9 17 19 14 6 Storage 6 | . 14 11 11 9 7 6 5 5 Processor 14 | . . . . . . 8 20 23 Hackware 1 | . . . . . . . 2 5 Protection 4 | . . 8 18 18 14 9 . . Energy Gun 1 | . . . . 5 7 6 . . Special Weapon 3 | . . . 6 9 7 6 3 . Slashing Weapon 4 | . . . . . . 4 8 . Piercing Weapon 1 | . . . . . . . 1 11 Naked Turns . | . . . . . . . . . Heaviest Build 35 | 10 10 23 30 30 33 34 35 31 Greatest Support 60 | 10 20 26 26 42 54 44 60 46 Greatest Overweight (x) 8 | 1 . . 1 . . 1 8 . Average Overweight (x) . | . . . . . . . . . Largest Inventory Capacity 10 | 8 8 10 10 10 10 10 10 10 Average Capacity 9 | 6 8 9 10 10 10 10 10 10 Most Carried 10 | 3 4 8 9 10 10 10 10 8 Average Carried 7 | 2 3 5 8 8 9 8 7 5 Final Capacity 10 | 8 8 10 10 10 10 10 10 10 Final Carried 10 | 3 4 8 9 10 10 7 9 5 Class Distribution -------------------- 79% | Mutant 20% | Scavenger-Mutant Dominant Class ---------------- Mutant | -10/Materials Mutant | -9/Materials Mutant | -9/Mines Mutant | -8/Materials Mutant | -7/Factory Mutant | -6/Factory Mutant | -5/Factory Mutant | -5/Extension Resources | -11 -10 -9 -9 -8 -7 -6 -5 -5 ----------- Run | Scr Mat Mat Min Mat Fac Fac Fac Ext Matter Collected 965 | 197 53 . 76 . 100 . 499 40 Remotely . | . . . . . . . . . Salvage Created 1618 | . . . . . . 132 1383 103 Parts 66 | . . . . . . 5 55 6 Haulers Intercepted . | . . . . . . . . . Recyclers Shooed 1 | . . . . . . . 1 . Parts Field Recycled . | . . . . . . . . . Retrieved Matter . | . . . . . . . . . Parts Self-Destructed . | . . . . . . . . . Prevented . | . . . . . . . . . Kills | -11 -10 -9 -9 -8 -7 -6 -5 -5 ------- Run | Scr Mat Mat Min Mat Fac Fac Fac Ext Combat Hostiles Destroyed 13 | . . . . . . 2 10 1 Melee 13 | . . . . . . 2 10 1 Classes Destroyed 8 | . . . . . . 2 6 . Worker 3 | . . . . . . . 3 . Builder 2 | . . . . . . . 2 . Recycler 5 | . . . . . . . 5 . Watcher 2 | . . . . . . . 1 1 Grunt 7 | . . . . . . . 6 1 Sentry 1 | . . . . . . 1 . . Hunter 1 | . . . . . . 1 . . Programmer 4 | . . . . . . . 4 . Best Kill Streak 8 | . . . . . . 2 8 1 Combat Bots Only 4 | . . . . . . 2 4 1 Max Kills in Single Turn 1 | . . . . . . 1 1 1 Gunslinging . | . . . . . . . . . Exploded . | . . . . . . . . . Melee 1 | . . . . . . 1 1 1 Uniques/NPCs Destroyed . | . . . . . . . . . Combat | -11 -10 -9 -9 -8 -7 -6 -5 -5 -------- Run | Scr Mat Mat Min Mat Fac Fac Fac Ext Damage Taken 4026 | . . 28 . 88 . 771 2955 184 Core 1085 | . . . . . . 64 931 90 Absorbed by Shields . | . . . . . . . . . Regen/Repaired (Parts) 17 | . . . . . 17 . . . Core Remaining (%) 98 | 100 100 . 100 100 100 92 . . Volleys Fired 7 | . . . . . 7 . . . Largest 1 | . . . . . 1 . . . Hottest 5 | . . . . . 5 . . . Shots Fired 7 | . . . . . 7 . . . Gun . | . . . . . . . . . Cannon . | . . . . . . . . . Launcher . | . . . . . . . . . Special 7 | . . . . . 7 . . . Kinetic . | . . . . . . . . . Thermal . | . . . . . . . . . Explosive . | . . . . . . . . . Electromagnetic . | . . . . . . . . . Robot Hit Streak 2 | . . . . . 2 . . . Robot Miss Streak 1 | . . . . . 1 . . . Penetration Max . | . . . . . . . . . Secondary Targets . | . . . . . . . . . Shots Hit Robots 82 | . . . . . 4 7 63 8 Core Hits 33 | . . . . . . 4 25 4 Critical Kills . | . . . . . . . . . Critical Parts Destroyed . | . . . . . . . . . Critical Strikes 7 | . . . . . . 1 5 1 Sever 6 | . . . . . . 1 5 . Impale 1 | . . . . . . . . 1 Melee Attacks 92 | . . . . . . 11 72 9 Impact . | . . . . . . . . . Slashing 83 | . . . . . . 11 72 . Piercing 9 | . . . . . . . . 9 Sneak Attacks 12 | . . . . . . . 12 . Combat Hostiles . | . . . . . . . . . Follow-up Attacks 8 | . . . . . . . 7 1 Damage Inflicted 3732 | . . . . . . 285 3206 241 Guns . | . . . . . . . . . Cannons . | . . . . . . . . . Explosions . | . . . . . . . . . Melee 3732 | . . . . . . 285 3206 241 Ramming . | . . . . . . . . . Kinetic . | . . . . . . . . . Thermal . | . . . . . . . . . Explosive . | . . . . . . . . . Electromagnetic . | . . . . . . . . . Impact . | . . . . . . . . . Slashing 3491 | . . . . . . 285 3206 . Piercing 241 | . . . . . . . . 241 Highest Corruption 6 | . . . . . . . 6 1 Average Corruption 1 | . . . . . . . 2 1 Corruption Purged 2 | . . . . . . . 2 . Corruption Blocked . | . . . . . . . . . Overload Shots . | . . . . . . . . . Overflow Damage 339 | . . . . . . 5 329 5 Projectiles . | . . . . . . . . . Explosions . | . . . . . . . . . Melee 339 | . . . . . . 5 329 5 Knockbacks . | . . . . . . . . . Impact . | . . . . . . . . . Kinetic . | . . . . . . . . . Secondary . | . . . . . . . . . Self-Inflicted Damage . | . . . . . . . . . Shots . | . . . . . . . . . Rammed . | . . . . . . . . . Targets Rammed . | . . . . . . . . . Kicked . | . . . . . . . . . Crushed . | . . . . . . . . . Highest Temperature 35 | . . . . . . . 35 . Average Temperature 11 | . . . . . . . 11 . Received Heat Transfer 588 | . . . . 36 . 60 456 36 Siege Activations . | . . . . . . . . . Robots Corrupted . | . . . . . . . . . Combat Hostiles . | . . . . . . . . . Parts Fried . | . . . . . . . . . Impact Corruptions . | . . . . . . . . . Robots Melted . | . . . . . . . . . Combat Hostiles . | . . . . . . . . . Parts Melted . | . . . . . . . . . Heat Transferred . | . . . . . . . . . Parts Sabotaged . | . . . . . . . . . Parts Stolen . | . . . . . . . . . Parts Stripped . | . . . . . . . . . Power Chain Reactions . | . . . . . . . . . Missiles Intercepted . | . . . . . . . . . Alert | -11 -10 -9 -9 -8 -7 -6 -5 -5 ------- Run | Scr Mat Mat Min Mat Fac Fac Fac Ext Peak Influence 611 | . . 8 3 120 98 53 288 611 Initial 99 | . . . 3 . 54 37 21 99 Average 92 | . . 1 3 46 71 40 87 391 Maximum Alert Level 2 | . . . . . . . 1 2 Low Security (%) 86 | 100 100 100 100 100 100 100 83 39 Level 1 9 | . . . . . . . 16 3 Level 2 4 | . . . . . . . . 56 Level 3 . | . . . . . . . . . Level 4 . | . . . . . . . . . Level 5 . | . . . . . . . . . High Security . | . . . . . . . . . Max Security . | . . . . . . . . . Squads Dispatched 8 | . . . 1 1 . 1 5 . Investigation 1 | . . . 1 . . . . . Extermination 4 | . . . . . . 1 3 . Reinforcement 3 | . . . . 1 . . 2 . Assault . | . . . . . . . . . Garrison . | . . . . . . . . . Intercept . | . . . . . . . . . Searches Triggered . | . . . . . . . . . Construction Impeded . | . . . . . . . . . Haulers Reinforced . | . . . . . . . . . Active Scanning Responses . | . . . . . . . . . Cargo Convoy Interrupts . | . . . . . . . . . Stealth | -11 -10 -9 -9 -8 -7 -6 -5 -5 --------- Run | Scr Mat Mat Min Mat Fac Fac Fac Ext Distress Signals 2 | . . . . . 1 . 1 . Communications Jammed . | . . . . . . . . . Distress Signals . | . . . . . . . . . Times Spotted 52 | . 1 . 3 6 2 4 30 6 Peak Tracking Total 9 | . 1 . 3 6 3 2 9 3 Tactical Retreats 10 | . . . . 3 . . 5 2 Traps | -11 -10 -9 -9 -8 -7 -6 -5 -5 ------- Run | Scr Mat Mat Min Mat Fac Fac Fac Ext Traps Triggered 3 | . . 1 . . . . 2 . Indirectly . | . . . . . . . . . Trap Hack Attempts . | . . . . . . . . . Triggered . | . . . . . . . . . Disarmed . | . . . . . . . . . Reprogrammed 4 | . . 4 . . . . . . Reused . | . . . . . . . . . Traps Extracted . | . . . . . . . . . Installed . | . . . . . . . . . Triggered . | . . . . . . . . . Machines | -11 -10 -9 -9 -8 -7 -6 -5 -5 ---------- Run | Scr Mat Mat Min Mat Fac Fac Fac Ext Machines Disabled . | . . . . . . . . . Max in Single Turn . | . . . . . . . . . Machines Sabotaged . | . . . . . . . . . Garrisons Compromised . | . . . . . . . . . Overloaded Fab Kills . | . . . . . . . . . Hacking | -11 -10 -9 -9 -8 -7 -6 -5 -5 --------- Run | Scr Mat Mat Min Mat Fac Fac Fac Ext Machines Accessed 15 | . . 3 1 1 2 2 6 . Terminals 7 | . . 2 . . . 2 3 . Fabricators . | . . . . . . . . . Repair Stations 1 | . . . . . 1 . . . Recycling Units 3 | . . 1 . . 1 . 1 . Scanalyzers 2 | . . . . 1 . . 1 . Garrison Access 1 | . . . . . . . 1 . Total Hacks 32 | . . 6 1 2 4 5 14 . Successful 22 | . . 6 1 2 3 3 7 . Failed 10 | . . . . . 1 2 7 . Catastrophic 2 | . . . . . . 1 1 . Database Lockouts . | . . . . . . . . . Manual . | . . . . . . . . . Terminals 16 | . . 5 . . . 5 6 . Fabricators . | . . . . . . . . . Repair Stations 3 | . . . . . 3 . . . Recycling Units 3 | . . 1 . . 1 . 1 . Scanalyzers 6 | . . . . 2 . . 4 . Garrison Access 3 | . . . . . . . 3 . Terminal Hacks 12 | . . 5 1 . . 3 3 . Part Schematic 1 | . . . . . . 1 . . Prototype ID Bank 2 | . . . . . . 1 1 . Open Door 1 | . . . 1 . . . . . Open DSF 1 | . . . . . . . 1 . Emergency Access Points 1 | . . 1 . . . . . . Unreport Threat 1 | . . . . . . 1 . . Locate Traps 1 | . . 1 . . . . . . Reprogram Traps 1 | . . 1 . . . . . . Dispatch Records 1 | . . 1 . . . . . . Zone Layout 2 | . . 1 . . . . 1 . Fabricator Hacks . | . . . . . . . . . Repair Station Hacks 2 | . . . . . 2 . . . Scan Component 1 | . . . . . 1 . . . Repair 1 | . . . . . 1 . . . Recycling Unit Hacks 2 | . . 1 . . 1 . . . Report Inventory 2 | . . 1 . . 1 . . . Scanalyzer 6 | . . . . 2 . . 4 . Insert Component 3 | . . . . 1 . . 2 . Analyze 3 | . . . . 1 . . 2 . Garrison Access Hacks . | . . . . . . . . . Unauthorized Hacks . | . . . . . . . . . Terminals . | . . . . . . . . . Fabricators . | . . . . . . . . . Repair Stations . | . . . . . . . . . Recycling Units . | . . . . . . . . . Scanalyzers . | . . . . . . . . . Garrison Access . | . . . . . . . . . Data Cores Recovered . | . . . . . . . . . Used . | . . . . . . . . . Hacking Detections 10 | . . 1 . 1 1 2 5 . Full Trace Events . | . . . . . . . . . Feedback Events . | . . . . . . . . . Feedback Blocked . | . . . . . . . . . Robot Schematics Acquired . | . . . . . . . . . Robots Built . | . . . . . . . . . Authchips . | . . . . . . . . . Time . | . . . . . . . . . Total Robot Build Rating . | . . . . . . . . . Part Schematics Acquired 4 | . . . . 1 . 1 2 . Parts Built . | . . . . . . . . . Authchips . | . . . . . . . . . Time . | . . . . . . . . . Total Part Build Rating . | . . . . . . . . . Parts Repaired 1 | . . . . . 1 . . . Time 16 | . . . . . 16 . . . Parts Recycled . | . . . . . . . . . Recycled Matter . | . . . . . . . . . Retrieved Matter . | . . . . . . . . . Retrieved Components . | . . . . . . . . . Parts Scanalyzed 3 | . . . . 1 . . 2 . Part Schematics Acquired 3 | . . . . 1 . . 2 . Parts Damaged . | . . . . . . . . . Bothacking | -11 -10 -9 -9 -8 -7 -6 -5 -5 ------------ Run | Scr Mat Mat Min Mat Fac Fac Fac Ext Used RIF Installer . | . . . . . . . . . Robots Hacked 1 | . . . . . 1 . . . Non-combat 1 | . . . . . 1 . . . Combat . | . . . . . . . . . Robot Hacks Applied 2 | . . . . . 2 . . . parse_system 2 | . . . . . 2 . . . Relay Couplers Released . | . . . . . . . . . Fabnet Peak Effective % . | . . . . . . . . . Robots Rewired 1 | . . . . . 1 . . . Allies Hacked . | . . . . . . . . . Hacks Repelled . | . . . . . . . . . Allies | -11 -10 -9 -9 -8 -7 -6 -5 -5 -------- Run | Scr Mat Mat Min Mat Fac Fac Fac Ext Total Allies 1 | . . . . . 1 . . . Largest Group 1 | . . . . . 1 . . . Highest-Rated Group 32 | . . . . . 32 . . . Highest-Rated Ally 32 | . . . . . 32 . . . Total Orders . | . . . . . . . . . Ally Attacks 1 | . . . . . 1 . . . Total Damage 26 | . . . . . 26 . . . Kills . | . . . . . . . . . Allies Corrupted . | . . . . . . . . . Allies Melted . | . . . . . . . . . Intel | -11 -10 -9 -9 -8 -7 -6 -5 -5 ------- Run | Scr Mat Mat Min Mat Fac Fac Fac Ext Robot Analysis Total . | . . . . . . . . . Derelict Logs Recovered 1 | . . . 1 . . . . . Drone Launches . | . . . . . . . . . Drone Recoveries . | . . . . . . . . . Exploration | -11 -10 -9 -9 -8 -7 -6 -5 -5 ------------- Run | Scr Mat Mat Min Mat Fac Fac Fac Ext Turns Passed 3169 | 45 61 156 98 130 368 377 1689 245 Spaces Moved 2773 | 47 75 179 105 110 326 327 1345 259 Core 12 | 7 . . . . . . 5 . Treads . | . . . . . . . . . Legs 611 | . . . . . . 156 455 . Wheels 1038 | 40 75 179 105 110 326 171 32 . Hover 1112 | . . . . . . . 853 259 Flight . | . . . . . . . . . Fastest Speed 50 | 50 80 80 80 86 86 83 53 60 Average Speed 84 | 76 80 80 88 86 86 102 83 65 Slowest Speed 450 | 100 80 80 95 86 95 120 450 68 Overloaded Moves . | . . . . . . . . . Propulsion Burnouts . | . . . . . . . . . Robots Hopped . | . . . . . . . . . Cave-ins Triggered . | . . . . . . . . . Exploration Rate (%) 17 | 4 14 24 26 13 9 11 31 21 Regions Visited 8 Branch Regions 2 Pre-discovered Areas . | . . . . . . . . . Known Exits Taken . | . . . . . . . . . Unknown Exits Taken 8 | 1 1 1 1 1 1 1 1 . Scrap Searched . | . . . . . . . . . Spaces Dug . | . . . . . . . . . Terrain Destroyed . | . . . . . . . . . Melee . | . . . . . . . . . Projectile . | . . . . . . . . . AOE . | . . . . . . . . . Terrain Rammed . | . . . . . . . . . Walls Destroyed . | . . . . . . . . . Machines Disabled . | . . . . . . . . . Actions | -11 -10 -9 -9 -8 -7 -6 -5 -5 --------- Run | Scr Mat Mat Min Mat Fac Fac Fac Ext Total 3484 | 53 75 190 108 145 405 352 1834 322 Wait 512 | . . 4 1 31 63 . 363 50 Move 2765 | 46 74 178 104 109 325 326 1344 259 Hop . | . . . . . . . . . Pick Up 23 | 3 . 3 1 2 1 4 9 . Fast Attach 48 | 4 . 4 2 1 5 2 29 1 Attach 16 | . . . . 1 1 6 4 4 Detach 2 | . . 1 . . 1 . . . Swap 10 | . 1 . . . 1 . 8 . Drop 18 | . . . . 1 1 3 13 . Fire 7 | . . . . . 7 . . . Melee 83 | . . . . . . 11 64 8 Ram . | . . . . . . . . . Kick . | . . . . . . . . . Crush . | . . . . . . . . . Escape Stasis . | . . . . . . . . . Rewire . | . . . . . . . . . Trap . | . . . . . . . . . Miscellaneous . | . . . . . . . . . Route ------- -11/Scrapyard -10/Materials -9/Materials -9/Mines -8/Materials (discovered 2 exits: *Fac / Sto) -7/Factory -6/Factory -5/Factory -5/Extension History --------- Turn | Location | Event 11 | -11/Scrapyard | Discovered new exit (range 16) 46 | -11/Scrapyard | Entered Materials 98 | -10/Materials | Discovered new exit (range 9) 107 | -10/Materials | Entered another Materials area 107 | -9/Materials | Evolved 2 slots: Utility x2 253 | -9/Materials | Discovered new exit (range 10) 263 | -9/Materials | Entered Mines 288 | -9/Mines | Discovered new exit (range 9) 297 | -9/Mines | Met a Derelict shopkeep closing up shop 325 | -9/Mines | Build established: Mutant 361 | -9/Mines | Entered Materials 361 | -8/Materials | Evolved 2 slots: Propulsion x1, Utility x1 362 | -8/Materials | Identified exit to Storage 453 | -8/Materials | Discovered new exit (range 16) 491 | -8/Materials | Entered Factory 491 | -7/Factory | Evolved 2 slots: Propulsion x1, Utility x1 530 | -7/Factory | Repaired Hrd. Light Armor Plating 845 | -7/Factory | Discovered new exit (range 14) 859 | -7/Factory | Entered another Factory area 859 | -6/Factory | Evolved 2 slots: Utility x1, Weapon x1 1066 | -6/Factory | Lost 4 parts (2n2u) 1227 | -6/Factory | Discovered new exit (range 8) 1236 | -6/Factory | Entered another Factory area 1236 | -5/Factory | Evolved 2 slots: Utility x2 1866 | -5/Factory | Lost 5 parts (1p2n1u1w) 2252 | -5/Factory | Lost 8 parts (1p5n2w) 2537 | -5/Factory | Build established: Scavenger-Mutant 2645 | -5/Factory | Lost 3 parts (1n1u1w) 2867 | -5/Factory | Core integrity fell below 50% 2873 | -5/Factory | Core integrity fell below 20% 2922 | -5/Factory | Discovered new exit (range 4) 2925 | -5/Factory | Entered Extension 2947 | -5/Extension | Lost 9 parts (1p1n4u3w) 3020 | -5/Extension | Spotted B-75 Beast 3149 | -5/Extension | Build established: Mutant 3170 | -5/Extension | Destroyed by L-41 Fighter with Axe Last Messages --------------- 02904_ ALERT: Hostiles spotted, dispatching reinforcements to Terminal F013. 02913_ Slug penetrates Wall. 02916_ Penetrated by Slug. 02916_ Spear destroyed. 02922_ EXIT=FOUND LOCATION=UNKNOWN GOAL=ESCAPE 02952_ Destroyed Imp. Hover Unit. 02952_ Spear follow-up attack on W-25 Informer. 03042_ W-25 Informer suffers critical hit (Impale). 03042_ W-25 Informer destroyed. 03045_ Acquired 40 matter. 03047_ Acquired Imp. Hover Unit. 03076_ K-01 Serf enters Transfer Station. 03091_ U-05 Engineer enters Transfer Station. 03138_ G-50 Soldier destroyed. 03148_ Imp. Hover Unit destroyed. 03163_ R-10 Processor enters Transfer Station. [Achievement: Achiever] Map ----- +----------------------------------------------------+ | ?????# ?????????????? | | ?????# ???????????????? | | ?????# ?????????????????? | | ?????#[!* ???????????????????? | | ?????# %=?????????????????????? | | ?????# #??????????????????????? | | ?????# #??????????????????????? | | ?????# #??????????????????????? | | ?????# #??????????????????????? | | ?????# #??????????????????????? | | ?????# #??????????????????????? | | ?????# #??????????????????????? | | ?????# #??????????????????????? | | ?????# #??????????????????????? | | ?????# #??????????????????????? | | ?????# #??????????????????????? | | ?????# #??????????????????????? | | ?????#g#??????????????????????? | | ?????# #??????????????????????? | | ?##### #####??????????????????? | | ?# "" "" #??????????????????? | | ?# " " #################### | | ?# | | ?# | | ?# l | | ?# @ | | ?# | | ?# #################### | | ?# #??????????????????? | | ?###" "###??????????????????? | | ???#" "#????????????????????? | | ???#"""""#????????????????????? | | ???#######????????????????????? | | ??????????????????????????????? | | ??????????????????????????????? | | | | | | | | | | | | | | | | | | | | | | | | | | | | | | | +----------------------------------------------------+ Best States ------------- Heat Dissipation 59 Energy Generation 19 Energy Capacity 315 Matter Stores 300 Matter Capacity 300 Sight Range 22 Terrain Scan Density 10 Jamming Range 12 Additional Mass Support 6 Corruption Containment 8 Armor Coverage 300 Resistance: EM 15 Melee Speed Boost 20 Evasion (%) 60 Melee Accuracy 11 Target Analysis 6 Offensive Hacking 10 Item Schematics ----------------- Melee Analysis Suite | -8/Materials | Scanalyzed Adv. Hardlight Generator | -6/Factory | Hacked Adv. Signal Interpreter | -5/Factory | Scanalyzed Sml. Storage Unit | -5/Factory | Scanalyzed Robot Schematics ------------------ None Fabricated ------------ Nothing Alien Tech Used ----------------- None Achievements -------------- Achiever Deadly Force Challenges ------------ None Game ------ Seed SignalFlakBiocell Manual? 0 Play Time 00:52:51 Cumulative 29.3 hours Start 2022.05.09 @ 05:37:39 End 2022.05.09 @ 06:28:24 Sessions 1 Manual Loads 0 Difficulty Rogue Special Mode None Game No. 55 Rogue 55 Adventurer 0 Explorer 0 Win Type - Total 0 Types 0/0/0/0/0/0/0/0/0 Lore% 23 Gallery% 31 Achievement% 25 Wizard Run 0 Options --------- ASCII 0 Keyboard 0 Movement Numpad Keybinds 0 Fullscreen 2 Font 18/SmallcapsGlow Map View 76x50 Tactical HUD 1 Map Filters NONE Filters NONE Steam 1 RUN: b008fd85-3205-4653-8047-8175715c6bb4